bitfinex-derivatives/quotes_ETHF0:USTF0_20251211
["timestamp","ask_amount","ask_price","bid_price","bid_amount"]
[1765492706365,2.8117,3245.8,3245.7,0.15712612]
[1765492707272,6.0195,3245.8,3245.7,0.15712612]
[1765492708675,7.60130146,3245.8,3245.7,0.15712612]
[1765492709676,3.6414,3245.5,3245.4,0.004622]
[1765492709869,5.22320146,3245.5,3245.4,0.004622]
[1765492710474,5.22320146,3245.5,3245.4,0.158652]
[1765492710683,2.8117,3244.9,3244.8,0.15406]
[1765492711072,4.39350146,3244.9,3244.8,0.15406]
[1765492711677,4.39599338,3244.9,3244.8,0.15627395]
[1765492714178,2.81419192,3244.9,3244.8,0.15627395]
[1765492714474,4.39599338,3244.9,3244.8,0.15627395]
[1765492715567,2.81419192,3244.9,3244.8,0.15627395]
[1765492715779,4.39599338,3244.9,3244.8,0.15627395]
[1765492721087,7.60379338,3244.9,3244.8,0.15627395]
[1765492728103,3.21029192,3244.9,3244.8,2.92927395]
[1765492728303,3.2078,3245.3,3245.2,2.92704]
[1765492728705,1.58180146,3245.7,3245.2,2.92704]
[1765492728706,3.2078,3245.7,3245.6,2.6431]
[1765492729103,4.5401,3245.7,3245.6,2.6431]
[1765492729307,4.54261397,3245.7,3245.6,2.6431]
[1765492729506,4.54261397,3245.7,3245.6,2.79712]
[1765492730106,3.21031397,3245.7,3245.6,2.79712]
[1765492730808,5.84641397,3245.7,3245.6,2.79712]
[1765492731106,4.54261397,3245.7,3245.6,2.79712]
[1765492731306,5.84641397,3245.7,3245.6,2.79712]
[1765492732305,7.42821543,3245.7,3245.6,0.15402]
[1765492735905,4.22041543,3245.7,3245.6,0.15402]
[1765492736104,7.42821543,3245.7,3245.6,0.15402]
[1765492738304,5.84641397,3245.7,3245.6,0.15402]
[1765492738510,5.84641397,3245.7,3245.6,1.50142]
[1765492738806,5.84641397,3245.7,3245.6,0.15402]
[1765492739011,7.42821543,3245.7,3245.6,0.15402]
[1765492741203,5.84641397,3245.7,3245.6,1.50142]
[1765492741416,5.84641397,3245.7,3245.6,0.15402]
[1765492741614,7.42821543,3245.7,3245.6,0.15402]
[1765492747716,2.6361,3244.9,3244.8,1.34961395]
[1765492747917,2.6361,3244.9,3244.8,0.15627395]
[1765492748523,4.21790146,3244.9,3244.8,0.15627395]
[1765492749314,7.42570146,3244.9,3244.8,0.15627395]
[1765492751016,2.6361,3244.6,3244.5,0.004622]
[1765492751217,4.21790146,3244.6,3244.5,0.004622]
[1765492752124,4.21790146,3244.6,3244.5,0.00778947]
[1765492763730,2.9967,3244.5,3244.4,0.15408]
[1765492763931,2.2526,3243.8,3243.7,5.5158]
[1765492764127,2.2526,3243.8,3243.7,5.66991]
[1765492764325,2.2526,3243.8,3243.7,5.91154033]
[1765492764526,2.2526,3243.8,3243.7,4.76864033]
[1765492764727,2.2526,3243.8,3243.7,1.56401516]
[1765492764933,2.2526,3243.8,3243.7,0.15728483]
[1765492771330,2.2526,3243.8,3243.7,1.32238483]
[1765492771632,2.2526,3243.8,3243.7,0.15728483]
[1765492772535,5.4604,3243.8,3243.7,0.15728483]
[1765492774936,2.2526,3243.8,3243.7,0.15728483]
[1765492775435,5.4604,3243.8,3243.7,0.15728483]
[1765492775940,0.004622,3244.1,3244.0,3.1457]
[1765492776135,3.2078,3244.6,3244.5,2.46207]
[1765492776340,3.2078,3244.6,3244.5,3.14567]
[1765492777139,1.9025,3245.0,3244.9,2.46206]
[1765492778038,1.1296,3245.0,3244.9,2.46206]
[1765492778537,0.004622,3245.3,3245.2,2.46204]
[1765492779539,3.9519,3246.0,3245.6,2.46202]
[1765492780744,3.956522,3246.0,3245.6,2.46202]
[1765492781239,2.25511397,3245.7,3245.6,1.31912]
[1765492781431,2.25511397,3245.7,3245.6,2.46202]
[1765492782644,2.25511397,3245.7,3245.6,1.31912]
[1765492782845,2.25511397,3245.7,3245.6,2.46202]
[1765492783444,0.00251397,3245.7,3245.6,2.46202]
[1765492784147,1.13211397,3245.7,3245.6,2.46202]
[1765492784346,0.00251397,3245.7,3245.6,2.46202]
[1765492785943,0.004622,3246.0,3245.9,2.46201]
[1765492787046,0.00785085,3246.0,3245.9,2.46201]
[1765492792957,4.3193,3246.8,3246.7,2.25227]
[1765492793261,5.4261,3246.8,3246.7,2.25227]
[1765492793859,5.4261,3246.8,3246.7,1.22636335]
[1765492794063,5.4294865,3246.8,3246.7,1.22636335]
[1765492794361,5.4294865,3246.8,3246.7,2.25506335]
[1765492795762,4.3226865,3246.8,3246.7,2.25506335]
[1765492795964,5.4294865,3246.8,3246.7,0.15676335]
[1765492797859,4.3226865,3246.8,3246.7,2.25506335]
[1765492798058,0.0033865,3246.8,3246.7,2.25506335]
[1765492800262,2.222922,3247.1,3247.0,0.15396]
[1765492801170,2.22628854,3247.1,3247.0,0.15396]
[1765492801358,2.2183,3246.8,3246.7,0.15676335]
[1765492801558,5.4261,3246.8,3246.7,0.15676335]
[1765492801758,5.4261,3246.8,3246.7,2.25506335]
[1765492802167,5.4261,3246.8,3246.7,0.15676335]
[1765492802369,7.00975367,3246.8,3246.7,0.15676335]
[1765492802569,5.4261,3246.8,3246.7,0.15676335]
[1765492802763,5.4261,3246.8,3246.7,1.22636335]
[1765492803068,5.4261,3246.8,3246.7,0.15676335]
[1765492803872,5.4261,3246.8,3246.7,1.22636335]
[1765492804066,5.4261,3246.8,3246.7,2.25506335]
[1765492804271,3.2078,3246.8,3246.7,2.25506335]
[1765492804577,4.3193,3246.8,3246.7,2.25506335]
[1765492805070,3.2078,3246.8,3246.7,2.25506335]
[1765492805869,4.3193,3246.8,3246.7,2.25506335]
[1765492806463,3.2078,3246.8,3246.7,2.25506335]
[1765492806875,4.3193,3246.8,3246.7,2.25506335]
[1765492807075,5.4261,3246.8,3246.7,2.25506335]
[1765492807676,3.2078,3246.8,3246.7,2.25506335]
[1765492808177,4.3193,3246.8,3246.7,2.25506335]
[1765492808367,3.2078,3246.8,3246.7,2.25506335]
[1765492808976,5.4261,3246.8,3246.7,2.25506335]
[1765492809577,4.3193,3246.8,3246.7,2.25506335]
[1765492809970,3.2078,3246.8,3246.7,2.25506335]
[1765492810279,0.00798854,3247.1,3247.0,2.25226]
[1765492810574,1.11948854,3247.1,3247.0,2.25226]
[1765492811172,2.22628854,3247.1,3247.0,2.25226]
[1765492811372,1.11948854,3247.1,3247.0,2.25226]
[1765492811576,2.22628854,3247.1,3247.0,2.25226]
[1765492812782,1.11948854,3247.1,3247.0,2.25226]
[1765492813576,0.00798854,3247.1,3247.0,2.25226]
[1765492813979,2.22628854,3247.1,3247.0,0.15396]
[1765492814177,2.22628854,3247.1,3247.0,1.22356]
[1765492814377,2.22628854,3247.1,3247.0,2.25226]
[1765492815080,0.00798854,3247.1,3247.0,4.39031367]
[1765492815278,0.00798854,3247.1,3247.0,2.80666]
[1765492816679,0.00798854,3247.1,3247.0,4.39031367]
[1765492816878,5.2409,3247.8,3247.7,2.13782]
[1765492817081,4.1934,3247.8,3247.7,2.13782]
[1765492817271,5.2409,3247.8,3247.7,2.13782]
[1765492818076,5.24469766,3247.8,3247.7,2.13782]
[1765492820382,4.19719766,3247.8,3247.7,2.13782]
[1765492820875,5.21629766,3247.8,3247.7,2.13782]
[1765492821075,4.19719766,3247.8,3247.7,2.13782]
[1765492821781,5.21629766,3247.8,3247.7,2.13782]
[1765492822283,5.19579766,3247.8,3247.7,1.15522]
[1765492822583,5.19579766,3247.8,3247.7,2.15922]
[1765492822778,3.21159766,3247.8,3247.7,2.15922]
[1765492823184,4.17669766,3247.8,3247.7,2.15922]
[1765492823486,0.96889766,3247.8,3247.7,2.15922]
[1765492823677,0.00379766,3247.8,3247.7,2.15922]
[1765492823879,0.96889766,3247.8,3247.7,2.15922]
[1765492825188,0.00379766,3247.8,3247.7,2.15922]
[1765492827876,0.96889766,3247.8,3247.7,2.15922]
[1765492828091,0.00379766,3247.8,3247.7,2.15922]
[1765492829691,7.66e-06,3247.8,3247.7,2.15922]
[1765492830891,7.66e-06,3247.8,3247.7,3.73807599]
[1765492831391,3.2078,3248.2,3248.1,2.1173]
[1765492831695,3.2078,3248.2,3248.1,3.69615599]
[1765492831894,5.192,3248.2,3248.1,0.1539]
[1765492832395,5.19590262,3248.2,3248.1,1.1133]
[1765492833795,3.21170262,3248.2,3248.1,3.69615599]
[1765492833988,5.19590262,3248.2,3248.1,3.69615599]
[1765492837388,5.19590262,3248.2,3248.1,2.69215599]
[1765492837894,5.19590262,3248.2,3248.1,3.69615599]
[1765492838095,5.19590262,3248.2,3248.1,2.69215599]
[1765492838297,5.19590262,3248.2,3248.1,1.73275599]
[1765492838597,6.77475861,3248.2,3248.1,0.1539]
[1765492838899,1.9842,3247.7,3247.6,3.2078]
[1765492839092,0.6193,3248.0,3247.7,0.9594]
[1765492839299,1.9842,3247.9,3247.8,0.15392]
[1765492840094,3.56305599,3247.9,3247.8,0.15392]
[1765492840288,1.9842,3246.8,3246.7,1.96619335]
[1765492840596,1.48398496,3246.8,3246.7,0.15676335]
[1765492840800,5.192,3247.3,3247.2,0.9594]
[1765492841192,0.9651,3247.3,3247.2,2.11735]
[1765492841387,1.9842,3247.3,3247.2,2.11735]
[1765492841790,0.9651,3247.3,3247.2,2.11735]
[1765492842488,2.6035,3247.5,3247.4,2.11734]
[1765492843703,2.6035,3247.5,3247.1,1.57885599]
[1765492843704,5.192,3247.8,3247.7,0.15392]
[1765492845295,5.192,3247.8,3247.7,1.11332]
[1765492846201,5.192,3247.8,3247.7,2.11732]
[1765492846496,5.192,3247.8,3247.7,1.11332]
[1765492846801,5.192,3247.8,3247.7,0.15392]
[1765492848902,2.3481,3247.0,3246.9,4.354782]
[1765492849097,2.3481,3247.0,3246.9,1.146982]
[1765492849600,2.3481,3247.0,3246.9,2.052882]
[1765492850196,1.919,3246.8,3246.5,3.2078]
[1765492850398,6.70565599,3246.8,3246.7,0.15676335]
[1765492850604,6.70565599,3246.8,3245.0,2.17345599]
[1765492850605,0.9324,3245.7,3245.6,5.92907599]
[1765492850798,1.919,3246.3,3246.2,0.15399]
[1765492851606,1.92151825,3246.3,3246.2,0.15774758]
[1765492854817,1.92151825,3246.3,3246.2,1.14614758]
[1765492855005,1.92151825,3246.3,3246.2,0.15774758]
[1765492856209,3.50037424,3246.3,3246.2,0.15774758]
[1765492856416,1.92151825,3246.3,3246.2,0.15774758]
[1765492856713,5.12931825,3246.3,3246.2,0.15774758]
[1765492857103,5.12931825,3246.3,3244.9,0.15406]
[1765492857104,2.384,3245.0,3244.9,0.15406]
[1765492857414,1.919,3244.4,3244.3,5.1021]
[1765492858109,1.923622,3244.7,3244.6,2.04837]
[1765492859915,1.919,3244.1,3244.0,0.004622]
[1765492860114,1.919,3243.0,3242.9,5.1021]
[1765492860309,5.7102,3243.5,3243.4,0.15413]
[1765492860812,5.71380903,3243.5,3243.4,1.14562328]
[1765492861217,5.71380903,3243.5,3243.4,0.15722328]
[1765492861617,5.13040903,3243.5,3243.4,1.14562328]
[1765492862010,5.13040903,3243.5,3243.4,0.15722328]
[1765492862306,5.13040903,3243.5,3243.4,1.14562328]
[1765492862509,5.13040903,3243.5,3242.5,3.8024]
[1765492862510,1.919,3243.2,3242.5,3.2078]
[1765492862719,1.919,3242.2,3242.1,0.15419]
[1765492863021,5.1268,3242.2,3242.1,0.15419]
[1765492863315,5.1268,3242.2,3242.1,0.40393969]
[1765492863509,5.1268,3242.2,3242.1,0.15707617]
[1765492863705,5.1268,3242.2,3242.1,0.40457498]
[1765492865517,5.1268,3242.2,3241.0,0.5946]
[1765492865518,3.2078,3241.8,3240.0,0.5946]
[1765492865722,3.2078,3240.6,3240.5,0.74886]
[1765492866327,3.21068336,3240.6,3240.5,0.75195135]
[1765492866925,3.21068336,3240.6,3240.5,0.15735135]
[1765492867925,3.21068336,3240.6,3240.5,0.75195135]
[1765492868222,3.21068336,3240.6,3240.1,0.23913376]
[1765492868424,0.2973,3238.5,3236.7,0.15444]
[1765492868623,3.2078,3236.9,3236.8,1.8943]
[1765492868828,0.9324,3236.8,3235.6,3.57183185]
[1765492869028,2.28089568,3237.0,3236.0,0.9884]
[1765492869231,3.2078,3236.1,3236.0,1.89702476]
[1765492869526,3.2078,3236.1,3236.0,2.05150476]
[1765492869831,3.2078,3236.1,3236.0,5.62333661]
[1765492870031,3.2078,3236.1,3236.0,11.62333661]
[1765492870328,0.99653751,3236.1,3236.0,13.90423229]
[1765492870630,3.2078,3236.7,3236.6,2.04875]
[1765492871031,3.2078,3236.7,3236.6,5.44310539]
[1765492871226,3.2078,3236.7,3236.6,11.44310539]
[1765492872634,3.2078,3237.1,3237.0,2.4889]
[1765492873128,0.00463199,3237.9,3237.6,0.1544]
[1765492873336,0.00463199,3237.9,3237.8,0.9884]
[1765492873633,0.0084005,3237.9,3237.8,0.9884]
[1765492873831,0.0084005,3237.9,3237.8,2.04869]
[1765492874025,0.0084005,3237.9,3237.8,1.8943]
[1765492874434,0.0084005,3237.9,3237.8,7.8943]
[1765492874929,3.2078,3238.5,3237.8,7.8943]
[1765492875231,3.2078,3238.5,3238.4,5.3644]
[1765492876035,3.21086918,3238.5,3238.4,5.36775655]
[1765492878532,3.21086918,3238.5,3238.4,2.76525655]
[1765492878933,5.82346918,3238.5,3238.4,2.71155655]
[1765492879129,3.21086918,3238.5,3238.4,5.35905655]
[1765492879532,3.21086918,3238.5,3238.4,5.51341655]
[1765492880830,0.00306918,3238.5,3238.4,5.51341655]
[1765492881335,1.57296918,3238.5,3238.4,5.51341655]
[1765492882831,4.28516918,3238.5,3238.4,5.51341655]
[1765492883033,1.57296918,3238.5,3238.4,5.51341655]
[1765492883635,4.28516918,3238.5,3238.4,2.86591655]
[1765492884137,4.28516918,3238.5,3238.4,5.51341655]
[1765492884838,4.28516918,3238.5,3238.4,2.86591655]
[1765492885232,1.57296918,3238.5,3238.4,5.51341655]
[1765492887232,0.00306918,3238.5,3238.4,5.51341655]
[1765492891446,0.93650069,3238.5,3238.4,5.51341655]
[1765492892246,7.79090069,3238.5,3238.4,0.15771655]
[1765492894439,7.79090069,3238.5,3238.4,2.86591655]
[1765492895645,7.79090069,3238.5,3238.4,0.15771655]
[1765492898448,7.79090069,3238.5,3238.1,0.00463199]
[1765492898449,5.2845,3238.2,3238.1,0.15901199]
[1765492898641,9.40815674,3238.2,3238.1,0.15901199]
[1765492899444,9.40815674,3238.2,3238.1,0.16150605]
[1765492899844,5.2845,3237.4,3237.3,2.86262]
[1765492900047,6.20035674,3237.4,3236.9,3.2078]
[1765492900349,5.2845,3237.1,3237.0,0.15443]
[1765492900535,6.20035674,3237.1,3237.0,0.15443]
[1765492900738,2.7122,3236.6,3236.5,8.5635]
[1765492900942,6.20035674,3236.6,3236.5,5.91843342]
[1765492901446,6.20035674,3236.6,3236.5,2.86508342]
[1765492902236,6.20035674,3236.6,3236.5,0.15688342]
[1765492905648,6.20035674,3236.6,3236.5,5.51258342]
[1765492906151,6.20035674,3236.6,3236.5,0.15688342]
[1765492908638,2.7122,3235.7,3235.6,5.4795978]
[1765492908843,6.19795674,3235.7,3235.6,2.8627]
[1765492909143,6.19795674,3235.7,3235.6,0.396719]
[1765492909552,6.19795674,3235.7,3235.6,2.905119]
[1765492909746,6.20104479,3235.7,3235.6,2.90821957]
[1765492910440,6.20104479,3235.7,3235.6,0.39981957]
[1765492910644,5.1119,3235.1,3235.0,3.2078]
[1765492910840,5.1119,3235.1,3235.0,5.7162]
[1765492911244,5.1119,3235.1,3235.0,8.0828]
[1765492911446,2.542,3235.1,3235.0,8.0828]
[1765492911750,2.542,3235.1,3235.0,8.24011432]
[1765492911950,0.00463199,3235.4,3235.3,2.66291]
[1765492911951,5.11653199,3235.4,3235.3,2.66291]
[1765492912152,6.00683221,3235.4,3235.3,0.15451]
[1765492912650,0.89493221,3235.4,3235.3,5.02951]
[1765492913047,2.54663199,3235.4,3235.3,5.02951]
[1765492913351,0.00463199,3235.4,3235.3,5.02951]
[1765492914649,1.99e-06,3235.4,3235.3,5.02951]
[1765492914851,1.99e-06,3235.4,3235.3,8.57693701]
[1765492915251,1.99e-06,3235.4,3235.3,5.02951]
[1765492915452,1.99e-06,3235.4,3235.3,8.57693701]
[1765492917150,2.76675291,3235.7,3235.6,5.0295]
[1765492917454,1.73178291,3235.7,3235.6,8.57257437]
[1765492917655,6.6818,3236.5,3236.4,2.66286]
[1765492917848,9.8896,3236.5,3236.4,2.66286]
[1765492918050,4.7777,3236.5,3236.4,5.02946]
[1765492918245,3.21005348,3236.5,3236.4,5.02946]
[1765492918556,3.21005348,3236.5,3236.4,8.41521809]
[1765492919353,0.00225348,3236.5,3236.4,8.41521809]
[1765492919557,0.00463199,3236.8,3236.7,5.02945]
[1765492919954,0.00463199,3236.8,3236.7,8.49992384]
[1765492920458,0.00839384,3236.8,3236.7,8.49992384]
[1765492920646,3.2078,3237.4,3237.3,5.02942]
[1765492921758,5.7527402,3237.4,3237.3,5.03211859]
[1765492922458,8.3226402,3237.4,3237.3,2.66551859]
[1765492923261,8.3226402,3237.4,3237.3,5.03211859]
[1765492924553,8.3226402,3237.4,3237.3,2.66551859]
[1765492924866,8.3226402,3237.4,3237.3,5.03211859]
[1765492925066,8.3226402,3237.4,3237.3,2.66551859]
[1765492926357,8.3226402,3237.4,3237.3,5.03211859]
[1765492927858,8.3226402,3237.4,3237.3,2.66551859]
[1765492928164,8.3226402,3237.4,3237.3,5.03211859]
[1765492928556,5.7527402,3237.4,3237.3,5.03211859]
[1765492928762,8.3226402,3237.4,3237.3,5.03211859]
[1765492929769,5.1148402,3237.4,3237.3,5.03211859]
[1765492930667,5.1148402,3237.4,3237.3,2.66551859]
[1765492931863,5.1148402,3237.4,3237.3,5.03211859]
[1765492932165,2.5449402,3237.4,3237.3,5.03211859]
[1765492933065,5.1148402,3237.4,3237.3,5.03211859]
[1765492933870,2.5449402,3237.4,3237.3,5.03211859]
[1765492935171,5.1638402,3237.4,3237.3,5.03211859]
[1765492936464,2.5449402,3237.4,3237.3,5.03211859]
[1765492940181,5.1911402,3237.4,3237.3,5.03211859]
[1765492940374,2.5449402,3237.4,3237.3,5.03211859]
[1765492941079,5.1911402,3237.4,3237.3,5.03211859]
[1765492941380,2.5449402,3237.4,3237.3,5.03211859]
[1765492941583,2.6238402,3237.4,3237.3,5.03211859]
[1765492942176,5.2700402,3237.4,3237.3,5.03211859]
[1765492943682,2.6238402,3237.4,3237.3,5.03211859]
[1765492943871,0.0029402,3237.4,3237.3,5.03211859]
[1765492944482,0.00463199,3237.7,3237.6,5.156]
[1765492944875,0.00463199,3237.7,3237.6,8.43271908]
[1765492945170,2.62553199,3237.7,3237.6,8.43271908]
[1765492945375,2.62927553,3237.7,3237.6,8.43271908]
[1765492947190,0.00837553,3237.7,3237.6,8.43271908]
[1765492947491,2.62927553,3237.7,3237.6,8.43271908]
[1765492947690,5.27547553,3237.7,3237.6,8.43271908]
[1765492948087,2.62927553,3237.7,3237.6,8.43271908]
[1765492948395,5.27547553,3237.7,3237.6,2.6546]
[1765492951796,5.27547553,3237.7,3237.6,0.1544]
[1765492952396,5.27547553,3237.7,3237.6,2.6546]
[1765492955203,5.27547553,3237.7,3237.6,5.156]
[1765492956297,5.27547553,3237.7,3237.6,2.6546]
[1765492956695,5.27547553,3237.7,3237.6,0.1544]
[1765492956889,0.00837553,3237.7,3237.6,5.156]
[1765492957088,0.00837553,3237.7,3237.6,8.71471274]
[1765492958694,0.00837553,3237.7,3237.6,11.92251274]
[1765492958894,6.7129,3238.5,3238.4,2.65456]
[1765492959095,6.7129,3238.5,3238.4,5.15596]
[1765492959388,6.7129,3238.5,3238.4,2.65456]
[1765492959794,6.71668692,3238.5,3238.4,0.15436]
[1765492959994,6.71668692,3238.5,3238.4,2.65456]
[1765492960196,6.71668692,3238.5,3238.4,2.89861952]
[1765492960396,6.71668692,3238.5,3238.4,5.40001952]
[1765492960992,4.07048692,3238.5,3238.4,5.40001952]
[1765492961197,0.00378692,3238.5,3238.4,8.74725228]
[1765492961395,1.50268692,3238.5,3238.4,8.74725228]
[1765492961802,0.00378692,3238.5,3238.4,11.95505228]
[1765492963501,5.2671,3237.1,3236.0,1.5247]
[1765492963803,5.2671,3236.8,3236.7,3.2078]
[1765492963997,5.2671,3236.8,3236.7,3.17306695]
[1765492964406,5.2671,3236.8,3236.7,3.17528193]
[1765492964604,5.2671,3236.8,3236.7,3.32973193]
[1765492965999,5.2671,3236.8,3236.7,8.33133193]
[1765492966908,5.27173199,3237.1,3237.0,6.68073]
[1765492967105,0.00463199,3237.1,3237.0,6.68073]
[1765492968404,0.00463199,3237.1,3237.0,9.90219843]
[1765492971314,0.00463199,3237.1,3237.0,6.68073]
[1765492971912,0.00463199,3237.1,3237.0,9.98365389]
[1765492972415,5.27383199,3237.1,3237.0,10.45825389]
[1765492972610,5.27383199,3237.1,3237.0,7.15533]
[1765492972810,5.27383199,3237.1,3237.0,2.82343]
[1765492973014,5.27383199,3237.1,3237.0,5.54243]
[1765492973809,5.2992,3236.8,3236.7,0.00221498]
[1765492974011,5.2992,3236.5,3236.4,2.82809199]
[1765492974215,5.2992,3236.5,3236.4,5.54709199]
[1765492974407,5.2992,3236.5,3236.4,0.15909199]
[1765492975220,8.507,3236.5,3236.4,0.16307058]
[1765492976122,9.9729,3236.5,3236.4,0.16307058]
[1765492979220,5.0854,3235.1,3235.0,10.36323]
[1765492979419,5.7505,3235.3,3235.2,5.54252]
[1765492980222,5.75295602,3235.3,3235.2,5.54616447]
[1765492980918,8.29565602,3235.3,3235.2,0.15816447]
[1765492981322,8.29565602,3235.3,3235.2,2.82716447]
[1765492981519,8.40125602,3235.3,3235.2,5.54616447]
[1765492981727,8.40125602,3235.3,3235.2,5.80513076]
[1765492981926,8.40125602,3235.3,3235.2,0.41713076]
[1765492982123,5.75295602,3235.3,3235.2,5.80513076]
[1765492982518,8.40125602,3235.3,3235.2,5.80513076]
[1765492983225,8.40125602,3235.3,3235.2,0.41713076]
[1765492983418,8.40125602,3235.3,3235.2,3.08613076]
[1765492983927,8.40125602,3235.3,3235.2,5.80513076]
[1765492984423,8.40125602,3235.3,3235.2,0.41713076]
[1765492984822,8.40125602,3235.3,3235.2,3.08613076]
[1765492985230,8.40125602,3235.3,3235.2,0.41713076]
[1765492985519,8.40125602,3235.3,3235.2,3.076e-05]
[1765492985723,4.9272,3235.0,3234.9,0.00463199]
[1765492985931,4.9272,3235.0,3234.9,0.15916199]
[1765492986426,4.9272,3235.0,3234.9,2.82816199]
[1765492986627,4.9272,3235.0,3234.9,5.55071546]
[1765492988422,4.9272,3235.0,3234.9,0.41587505]
[1765492988621,4.9272,3235.0,3234.9,5.80387505]
[1765492990828,4.9272,3235.0,3234.9,3.08487505]
[1765492991424,4.9272,3235.0,3234.9,5.80387505]
[1765492991622,4.8462,3235.0,3234.9,0.41587505]
[1765492991822,4.8462,3235.0,3234.9,3.08487505]
[1765492993228,4.8462,3235.0,3234.9,5.80387505]
[1765492993430,4.8462,3235.0,3234.9,3.08487505]
[1765492993632,4.8462,3235.0,3234.9,5.80387505]
[1765492995027,4.8462,3235.0,3234.9,0.41587505]
[1765492995930,2.118,3234.1,3234.0,8.72659073]
[1765492996134,4.236,3234.8,3234.7,0.15454]
[1765492996334,7.4438,3234.8,3234.7,0.15454]
[1765492996727,7.4438,3234.8,3234.7,3.1798539]
[1765492996928,7.4438,3234.8,3234.7,3.18347398]
[1765492997126,7.4438,3234.8,3234.7,0.41547398]
[1765492999839,7.4438,3234.8,3234.7,3.18347398]
[1765493000039,5.3258,3234.8,3234.7,5.74827398]
[1765493000340,3.2078,3234.8,3234.7,5.74827398]
[1765493002637,5.2343,3234.8,3234.7,5.74827398]
[1765493004738,7.1503,3234.8,3234.7,5.74827398]
[1765493005048,7.1229,3234.8,3234.7,0.41547398]
[1765493005345,7.1229,3234.8,3234.7,5.62847398]
[1765493006043,5.0691,3234.8,3234.7,5.62847398]
[1765493006945,6.8758,3234.8,3234.7,5.62847398]
[1765493007339,3.2078,3234.8,3234.7,5.62847398]
[1765493008043,5.0418,3234.8,3234.7,5.62847398]
[1765493008940,3.2078,3234.8,3234.7,5.62847398]
[1765493009643,4.9877,3234.8,3234.7,5.62847398]
[1765493011047,6.7406,3234.8,3234.7,5.62847398]
[1765493011439,4.9877,3234.8,3234.7,5.62847398]
[1765493011639,6.687,3234.8,3234.7,0.41547398]
[1765493011839,4.9877,3234.8,3234.7,5.62847398]
[1765493012042,6.687,3234.8,3234.7,5.62847398]
[1765493012847,4.9877,3234.8,3234.7,5.62847398]
[1765493013542,6.6603,3234.8,3234.7,5.62847398]
[1765493014244,6.6337,3234.8,3234.7,5.62847398]
[1765493014849,6.6337,3234.8,3234.7,0.41547398]
[1765493015248,6.6337,3234.8,3234.7,5.62847398]
[1765493016446,3.2078,3234.8,3234.7,5.62847398]
[1765493016752,4.8009,3234.8,3234.7,5.62847398]
[1765493017043,6.3414,3234.8,3234.7,5.62847398]
[1765493017361,4.7746,3234.8,3234.7,5.62847398]
[1765493018149,6.3414,3234.8,3234.7,5.62847398]
[1765493018851,6.3414,3234.8,3234.7,0.41547398]
[1765493019148,6.3414,3234.8,3234.7,3.06367398]
[1765493019345,6.3414,3234.8,3234.7,0.41547398]
[1765493019548,6.3414,3234.8,3234.7,3.06367398]
[1765493019748,3.2078,3234.8,3234.7,5.62847398]
[1765493019942,6.1844,3234.8,3234.7,5.62847398]
[1765493021451,6.1844,3234.8,3234.7,3.06367398]
[1765493021748,6.1844,3234.8,3234.7,0.41547398]
[1765493022147,6.1844,3234.8,3234.7,3.06367398]
[1765493022452,3.2078,3234.8,3234.7,5.62847398]
[1765493022654,4.6443,3234.8,3234.7,5.62847398]
[1765493022952,6.055,3234.8,3234.7,0.41547398]
[1765493023251,6.055,3234.8,3234.7,5.62847398]
[1765493023651,3.2078,3234.8,3234.7,5.62847398]
[1765493023950,4.5927,3234.8,3234.7,5.62847398]
[1765493025149,5.9776,3234.8,3234.7,5.62847398]
[1765493025351,4.5927,3234.8,3234.7,5.62847398]
[1765493025551,5.8754,3235.2,3235.1,2.80272]
[1765493025755,5.8754,3235.2,3235.1,5.36752]
[1765493025953,5.8754,3235.2,3235.1,0.15452]
[1765493026152,5.8754,3235.2,3235.1,2.80272]
[1765493026754,5.8754,3235.2,3235.1,0.15452]
[1765493029455,5.8754,3235.2,3235.1,5.11822]
[1765493029756,5.8754,3235.2,3235.1,0.15452]
[1765493053471,5.8754,3235.2,3235.1,2.63962]
[1765493055472,5.1685,3235.2,3235.1,0.15452]
[1765493056082,5.1685,3235.2,3235.1,2.27842]
[1765493057281,5.1685,3235.2,3235.1,0.15452]
[1765493057474,5.1685,3235.2,3235.1,2.27842]
[1765493058084,5.1685,3235.2,3235.1,0.15452]
[1765493059682,5.1685,3235.2,3235.1,2.27842]
[1765493059983,5.1685,3235.2,3235.1,0.15452]
[1765493060378,1.9607,3235.2,3235.1,0.15452]
[1765493060876,5.1685,3235.2,3235.1,0.15452]
[1765493061185,5.1685,3235.2,3235.1,2.42572]
[1765493061385,5.1685,3235.2,3235.1,0.15452]
[1765493061985,4.5416,3235.2,3235.1,4.62422]
[1765493062186,5.01,3235.2,3235.1,0.15452]
[1765493063389,5.01,3235.2,3235.1,2.42572]
[1765493064191,5.01,3235.2,3235.1,0.15452]
[1765493064383,5.01,3235.2,3235.1,4.62422]
[1765493065587,5.01,3235.2,3235.1,2.42572]
[1765493065785,5.01,3235.2,3235.1,0.15452]
[1765493065991,5.01,3235.2,3235.1,4.62422]
[1765493066491,5.01,3235.2,3235.1,2.42572]
[1765493066990,4.5416,3235.2,3235.1,4.62422]
[1765493067287,4.8978,3235.2,3235.1,4.62422]
[1765493067488,4.8978,3235.2,3235.1,0.15452]
[1765493067688,4.8978,3235.2,3235.1,2.42572]
[1765493068093,4.5416,3235.2,3235.1,4.62422]
[1765493068288,4.8756,3235.2,3235.1,4.62422]
[1765493068486,4.8756,3235.2,3235.1,0.15452]
[1765493070388,4.8756,3235.2,3235.1,4.62422]
[1765493070593,4.8756,3235.2,3235.1,0.15452]
[1765493071192,6.46754596,3235.2,3235.1,0.15452]
[1765493071492,0.2266,3234.8,3234.7,0.00362008]
[1765493071694,3.4344,3234.8,3234.7,0.15816008]
[1765493071986,3.2992,3234.8,3234.7,4.62786008]
[1765493072196,3.2078,3234.8,3234.7,4.62786008]
[1765493072394,3.2992,3234.8,3234.7,4.62786008]
[1765493073297,3.2078,3234.8,3234.7,4.62786008]
[1765493075194,3.302,3234.8,3234.7,4.62786008]
[1765493076802,3.2078,3234.8,3234.7,4.62786008]
[1765493077097,3.215,3234.8,3234.7,4.62786008]
[1765493077298,3.2078,3234.8,3234.7,4.62786008]
[1765493077694,3.2078,3234.8,3234.7,10.62786008]
[1765493077899,0.55697773,3234.8,3234.7,10.62786008]